[Event "Titled Tuesday Blitz February 21 Early 2023"]
[White "Jaivardhan Raj"]
[Black "Babikov, Ivan"]
[WhiteFideId "25744437"]
[BlackFideId "4161106"]
[WhiteElo "1901"]
[BlackElo "2239"]
[Result "0-1"]
[Round "02"]
[TimeControl "180+2"]
[Date "2023.02.21"]
[WhiteClock "0:00:13"]
[BlackClock "0:00:15"]

1. d4 {[%clk 0:03:00]}  d5 {[%clk 0:02:59]} 2. Nf3 {[%clk 0:02:59]}  Nf6 {[%clk 0:02:59]} 3. Bf4 {[%clk 0:02:59]}  c5 {[%clk 0:02:59]} 4. c3 {[%clk 0:02:55]}  Nc6 {[%clk 0:02:59]} 5. e3 {[%clk 0:02:53]}  Qb6 {[%clk 0:02:58]} 6. Qb3 {[%clk 0:02:53]}  c4 {[%clk 0:02:59]} 7. Qc2 {[%clk 0:02:53]}  Bf5 {[%clk 0:02:57]} 8. Qc1 {[%clk 0:02:53]}  e6 {[%clk 0:02:54]} 9. Be2 {[%clk 0:02:53]}  Nh5 {[%clk 0:02:53]} 10. Bg3 {[%clk 0:02:49]}  Nxg3 {[%clk 0:02:53]} 11. hxg3 {[%clk 0:02:49]}  Bd6 {[%clk 0:02:49]} 12. Nbd2 {[%clk 0:02:49]}  h6 {[%clk 0:02:44]} 13. Bd1 {[%clk 0:02:45]}  Rc8 {[%clk 0:02:37]} 14. Bc2 {[%clk 0:02:46]}  Bxc2 {[%clk 0:02:37]} 15. Qxc2 {[%clk 0:02:46]}  e5 {[%clk 0:02:38]} 16. dxe5 {[%clk 0:02:42]}  Nxe5 {[%clk 0:02:33]} 17. Nxe5 {[%clk 0:02:42]}  Bxe5 {[%clk 0:02:34]} 18. Nf3 {[%clk 0:02:41]}  Bf6 {[%clk 0:02:31]} 19. Rd1 {[%clk 0:02:26]}  Rd8 {[%clk 0:02:31]} 20. Qa4+ {[%clk 0:02:23]}  Kf8 {[%clk 0:02:27]} 21. Qa3+ {[%clk 0:02:15]}  Be7 {[%clk 0:02:26]} 22. b4 {[%clk 0:02:04]}  Bf6 {[%clk 0:01:51]} 23. Nd4 {[%clk 0:01:54]}  g6 {[%clk 0:01:48]} 24. Qc1 {[%clk 0:01:29]}  Kg7 {[%clk 0:01:45]} 25. a3 {[%clk 0:01:22]}  Rhe8 {[%clk 0:01:41]} 26. O-O {[%clk 0:01:18]}  h5 {[%clk 0:01:33]} 27. Qd2 {[%clk 0:00:59]}  h4 {[%clk 0:01:31]} 28. gxh4 {[%clk 0:00:54]}  Bxh4 {[%clk 0:01:30]} 29. Qe2 {[%clk 0:00:52]}  Bf6 {[%clk 0:01:28]} 30. Qg4 {[%clk 0:00:50]}  Rh8 {[%clk 0:01:28]} 31. Nf5+ {[%clk 0:00:49]}  Kf8 {[%clk 0:01:21]} 32. Nd4 {[%clk 0:00:44]}  Qd6 {[%clk 0:01:10]} 33. g3 {[%clk 0:00:42]}  Rh5 {[%clk 0:01:08]} 34. Kg2 {[%clk 0:00:38]}  Kg7 {[%clk 0:01:07]} 35. Rh1 {[%clk 0:00:38]}  Rdh8 {[%clk 0:01:05]} 36. Rxh5 {[%clk 0:00:37]}  Rxh5 {[%clk 0:01:05]} 37. Rh1 {[%clk 0:00:35]}  Rxh1 {[%clk 0:01:05]} 38. Kxh1 {[%clk 0:00:35]}  a5 {[%clk 0:01:03]} 39. Qc8 {[%clk 0:00:32]}  axb4 {[%clk 0:00:58]} 40. axb4 {[%clk 0:00:33]}  Bxd4 {[%clk 0:00:38]} 41. exd4 {[%clk 0:00:33]}  Qe7 {[%clk 0:00:38]} 42. Kg2 {[%clk 0:00:27]}  Qe4+ {[%clk 0:00:37]} 43. Kh2 {[%clk 0:00:27]}  Qc2 {[%clk 0:00:35]} 44. Qxb7 {[%clk 0:00:27]}  Qxf2+ {[%clk 0:00:32]} 45. Kh3 {[%clk 0:00:23]}  Qf5+ {[%clk 0:00:30]} 46. g4 {[%clk 0:00:20]}  Qd3+ {[%clk 0:00:30]} 47. Kg2 {[%clk 0:00:19]}  Qc2+ {[%clk 0:00:28]} 48. Kg1 {[%clk 0:00:18]}  Qc1+ {[%clk 0:00:27]} 49. Kg2 {[%clk 0:00:18]}  Qd2+ {[%clk 0:00:27]} 50. Kg1 {[%clk 0:00:19]}  Qxc3 {[%clk 0:00:28]} 51. Qxd5 {[%clk 0:00:18]}  Qxb4 {[%clk 0:00:27]} 52. Qe5+ {[%clk 0:00:18]}  Kh7 {[%clk 0:00:24]} 53. Qh2+ {[%clk 0:00:18]}  Kg8 {[%clk 0:00:23]} 54. Qe2 {[%clk 0:00:17]}  c3 {[%clk 0:00:20]} 55. Qe8+ {[%clk 0:00:17]}  Kg7 {[%clk 0:00:19]} 56. Qe5+ {[%clk 0:00:17]}  Kh7 {[%clk 0:00:19]} 57. Qh2+ {[%clk 0:00:17]}  Kg8 {[%clk 0:00:19]} 58. Qe2 {[%clk 0:00:17]}  Qb1+ {[%clk 0:00:18]} 59. Kf2 {[%clk 0:00:16]}  c2 {[%clk 0:00:16]} 60. Qe8+ {[%clk 0:00:16]}  Kg7 {[%clk 0:00:16]} 61. Qe5+ {[%clk 0:00:16]}  Kh7 {[%clk 0:00:16]} 62. Qf6 {[%clk 0:00:14]}  Qb7 {[%clk 0:00:10]} 63. Qh4+ {[%clk 0:00:11]}  Kg7 {[%clk 0:00:10]} 64. Qg5 {[%clk 0:00:11]}  Qb2 {[%clk 0:00:07]} 65. Qe5+ {[%clk 0:00:10]}  Kh7 {[%clk 0:00:07]} 66. Qh2+ {[%clk 0:00:10]}  Kg8 {[%clk 0:00:06]} 67. Qg3 {[%clk 0:00:06]}  c1=Q+ {[%clk 0:00:06]} 68. Kf3 {[%clk 0:00:07]}  Qcc3+ {[%clk 0:00:06]} 69. Kf4 {[%clk 0:00:07]}  Qxg3+ {[%clk 0:00:07]} 70. Kxg3 {[%clk 0:00:07]}  Qxd4 {[%clk 0:00:08]} 71. Kh3 {[%clk 0:00:06]}  g5 {[%clk 0:00:09]} 72. Kg3 {[%clk 0:00:06]}  Qf4+ {[%clk 0:00:09]} 73. Kh3 {[%clk 0:00:07]}  Qxg4+ {[%clk 0:00:10]} 74. Kxg4 {[%clk 0:00:07]}  f6 {[%clk 0:00:09]} 75. Kf5 {[%clk 0:00:07]}  Kf7 {[%clk 0:00:09]} 76. Kg4 {[%clk 0:00:06]}  Kg6 {[%clk 0:00:10]} 77. Kg3 {[%clk 0:00:07]}  f5 {[%clk 0:00:10]} 78. Kf3 {[%clk 0:00:07]}  g4+ {[%clk 0:00:11]} 79. Kf4 {[%clk 0:00:07]}  Kf6 {[%clk 0:00:11]} 80. Kg3 {[%clk 0:00:08]}  Kg5 {[%clk 0:00:11]} 81. Kg2 {[%clk 0:00:08]}  Kf4 {[%clk 0:00:12]} 82. Kf2 {[%clk 0:00:09]}  g3+ {[%clk 0:00:12]} 83. Kg2 {[%clk 0:00:09]}  Kg4 {[%clk 0:00:13]} 84. Kg1 {[%clk 0:00:09]}  f4 {[%clk 0:00:14]} 85. Kg2 {[%clk 0:00:10]}  f3+ {[%clk 0:00:15]} 86. Kg1 {[%clk 0:00:10]}  g2 {[%clk 0:00:13]} 87. Kf2 {[%clk 0:00:10]}  Kh3 {[%clk 0:00:13]} 88. Kg1 {[%clk 0:00:10]}  f2+ {[%clk 0:00:13]} 89. Kxf2 {[%clk 0:00:10]}  Kh2 {[%clk 0:00:14]} 90. Kf3 {[%clk 0:00:10]}  g1=Q {[%clk 0:00:15]} 91. Kf4 {[%clk 0:00:11]}  Qg2 {[%clk 0:00:15]} 92. Kf5 {[%clk 0:00:12]}  Qg3 {[%clk 0:00:15]} 93. Kf6 {[%clk 0:00:13]} 0-1


[Site "https://www.chess.com"]

[Event "Titled Tuesday Blitz February 21 Early 2023"]
[White "Rangel, Daniel"]
[Black "Better_Chess_Faster"]
[WhiteFideId "2124475"]
[WhiteElo "2207"]
[BlackElo "1968"]
[Result "1-0"]
[Round "02"]
[TimeControl "180+2"]
[Date "2023.02.21"]
[WhiteClock "0:01:53"]
[BlackClock "0:01:47"]

1. e4 {[%clk 0:02:59]}  Nf6 {[%clk 0:02:59]} 2. Nc3 {[%clk 0:02:58]}  e5 {[%clk 0:02:59]} 3. Bc4 {[%clk 0:02:57]}  Nc6 {[%clk 0:02:56]} 4. d3 {[%clk 0:02:57]}  Bc5 {[%clk 0:02:55]} 5. Nge2 {[%clk 0:02:52]}  d6 {[%clk 0:02:53]} 6. Ng3 {[%clk 0:02:30]}  O-O {[%clk 0:02:46]} 7. O-O {[%clk 0:02:24]}  Bg4 {[%clk 0:02:41]} 8. Qd2 {[%clk 0:02:22]}  a6 {[%clk 0:02:35]} 9. a3 {[%clk 0:02:21]}  h6 {[%clk 0:02:31]} 10. Kh1 {[%clk 0:02:21]}  Qd7 {[%clk 0:02:26]} 11. f4 {[%clk 0:02:15]}  exf4 {[%clk 0:02:21]} 12. Rxf4 {[%clk 0:02:11]}  Ne5 {[%clk 0:02:17]} 13. Ba2 {[%clk 0:02:08]}  Ba7 {[%clk 0:02:13]} 14. Rxf6 {[%clk 0:02:03]}  gxf6 {[%clk 0:02:12]} 15. Qxh6 {[%clk 0:02:03]}  Be6 {[%clk 0:02:06]} 16. Nh5 {[%clk 0:01:56]}  Bxa2 {[%clk 0:01:47]} 17. Nxf6# {[%clk 0:01:53]} 1-0


[Site "https://www.chess.com"]

[Event "Titled Tuesday Blitz February 21 Early 2023"]
[White "Dias, Joao Batista"]
[Black "Gu, Xiaobing"]
[WhiteFideId "2108240"]
[BlackFideId "8602611"]
[WhiteElo "1796"]
[BlackElo "2167"]
[Result "0-1"]
[Round "02"]
[TimeControl "180+2"]
[Date "2023.02.21"]
[WhiteClock "0:00:59"]
[BlackClock "0:00:20"]

1. e4 {[%clk 0:03:00]}  c5 {[%clk 0:02:53]} 2. Nf3 {[%clk 0:02:59]}  d6 {[%clk 0:02:53]} 3. d4 {[%clk 0:02:59]}  cxd4 {[%clk 0:02:52]} 4. Nxd4 {[%clk 0:02:59]}  Nf6 {[%clk 0:02:53]} 5. Nc3 {[%clk 0:02:59]}  a6 {[%clk 0:02:53]} 6. Be3 {[%clk 0:02:59]}  e5 {[%clk 0:02:52]} 7. Nb3 {[%clk 0:02:58]}  Be6 {[%clk 0:02:52]} 8. f3 {[%clk 0:02:58]}  Be7 {[%clk 0:02:51]} 9. Be2 {[%clk 0:02:58]}  Nbd7 {[%clk 0:02:45]} 10. O-O {[%clk 0:02:58]}  b5 {[%clk 0:02:42]} 11. Qd2 {[%clk 0:02:48]}  O-O {[%clk 0:02:39]} 12. Rad1 {[%clk 0:02:47]}  Qc7 {[%clk 0:02:38]} 13. Nd5 {[%clk 0:02:43]}  Bxd5 {[%clk 0:02:35]} 14. exd5 {[%clk 0:02:43]}  Nb6 {[%clk 0:02:33]} 15. c3 {[%clk 0:02:42]}  Nfxd5 {[%clk 0:02:29]} 16. Bd3 {[%clk 0:02:31]}  Nxe3 {[%clk 0:02:17]} 17. Qxe3 {[%clk 0:02:31]}  d5 {[%clk 0:02:14]} 18. Bb1 {[%clk 0:02:28]}  Rad8 {[%clk 0:01:59]} 19. Kh1 {[%clk 0:02:27]}  Nc4 {[%clk 0:01:49]} 20. Qd3 {[%clk 0:02:21]}  g6 {[%clk 0:01:49]} 21. Qe2 {[%clk 0:02:20]}  Rfe8 {[%clk 0:01:42]} 22. Rfe1 {[%clk 0:02:16]}  Bf6 {[%clk 0:01:42]} 23. Qf2 {[%clk 0:02:01]}  a5 {[%clk 0:01:19]} 24. h4 {[%clk 0:01:51]}  a4 {[%clk 0:01:18]} 25. Nc1 {[%clk 0:01:51]}  h5 {[%clk 0:00:58]} 26. Nd3 {[%clk 0:01:48]}  Kg7 {[%clk 0:00:54]} 27. g4 {[%clk 0:01:35]}  hxg4 {[%clk 0:00:43]} 28. fxg4 {[%clk 0:01:35]}  Rh8 {[%clk 0:00:43]} 29. h5 {[%clk 0:01:35]}  gxh5 {[%clk 0:00:39]} 30. g5 {[%clk 0:01:32]}  Bxg5 {[%clk 0:00:36]} 31. Qf5 {[%clk 0:01:32]}  f6 {[%clk 0:00:28]} 32. Nf2 {[%clk 0:01:23]}  e4 {[%clk 0:00:27]} 33. Nh3 {[%clk 0:01:22]}  Qg3 {[%clk 0:00:24]} 34. Nxg5 {[%clk 0:01:06]}  fxg5 {[%clk 0:00:22]} 35. Rg1 {[%clk 0:00:59]}  Qh4+ {[%clk 0:00:20]} 0-1


[Site "https://www.chess.com"]

[Event "Titled Tuesday Blitz February 21 Early 2023"]
[White "Desideri, Ricardo Maruchi"]
[Black "Andrews, Todd"]
[WhiteFideId "2110440"]
[BlackFideId "2012456"]
[WhiteElo "1959"]
[BlackElo "2220"]
[Result "0-1"]
[Round "02"]
[TimeControl "180+2"]
[Date "2023.02.21"]
[WhiteClock "0:00:14"]
[BlackClock "0:01:10"]

1. e4 {[%clk 0:03:00]}  e6 {[%clk 0:02:59]} 2. d4 {[%clk 0:02:57]}  d5 {[%clk 0:03:00]} 3. e5 {[%clk 0:02:57]}  c5 {[%clk 0:03:00]} 4. c3 {[%clk 0:02:55]}  Nc6 {[%clk 0:03:00]} 5. Nf3 {[%clk 0:02:54]}  Bd7 {[%clk 0:02:59]} 6. a3 {[%clk 0:02:51]}  Nge7 {[%clk 0:02:58]} 7. b4 {[%clk 0:02:25]}  cxd4 {[%clk 0:02:58]} 8. cxd4 {[%clk 0:02:24]}  Nf5 {[%clk 0:02:58]} 9. Bb2 {[%clk 0:02:23]}  b5 {[%clk 0:02:58]} 10. Bxb5 {[%clk 0:02:20]}  Nxe5 {[%clk 0:02:58]} 11. Bxd7+ {[%clk 0:02:13]}  Nxd7 {[%clk 0:02:58]} 12. O-O {[%clk 0:02:11]}  Bd6 {[%clk 0:02:49]} 13. Nc3 {[%clk 0:02:04]}  O-O {[%clk 0:02:44]} 14. Ne2 {[%clk 0:01:58]}  Nb6 {[%clk 0:02:30]} 15. Ng3 {[%clk 0:01:49]}  Nxg3 {[%clk 0:02:25]} 16. hxg3 {[%clk 0:01:48]}  Nc4 {[%clk 0:02:16]} 17. Bc1 {[%clk 0:01:45]}  a5 {[%clk 0:02:04]} 18. b5 {[%clk 0:01:36]}  a4 {[%clk 0:02:03]} 19. Nd2 {[%clk 0:01:23]}  Qa5 {[%clk 0:01:44]} 20. Nxc4 {[%clk 0:01:23]}  dxc4 {[%clk 0:01:42]} 21. Rb1 {[%clk 0:01:20]}  Rfb8 {[%clk 0:01:38]} 22. d5 {[%clk 0:01:14]}  e5 {[%clk 0:01:27]} 23. Qe2 {[%clk 0:00:48]}  Rxb5 {[%clk 0:01:19]} 24. Be3 {[%clk 0:00:31]}  Rc8 {[%clk 0:01:12]} 25. Rxb5 {[%clk 0:00:16]}  Qxb5 {[%clk 0:01:12]} 26. Rd1 {[%clk 0:00:14]}  Qb3 {[%clk 0:01:10]} 0-1


[Site "https://www.chess.com"]

[Event "Titled Tuesday Blitz February 21 Early 2023"]
[White "Kielinkei"]
[Black "SulfatoFerroso"]
[WhiteElo "2378"]
[BlackElo "1776"]
[Result "1-0"]
[Round "02"]
[TimeControl "180+2"]
[Date "2023.02.21"]
[WhiteClock "0:00:45"]
[BlackClock "0:00:01"]

1. d4 {[%clk 0:03:00]}  d5 {[%clk 0:02:59]} 2. c4 {[%clk 0:02:59]}  e6 {[%clk 0:02:59]} 3. Nc3 {[%clk 0:02:59]}  Nf6 {[%clk 0:02:58]} 4. cxd5 {[%clk 0:03:00]}  exd5 {[%clk 0:02:57]} 5. Bg5 {[%clk 0:03:00]}  c6 {[%clk 0:02:56]} 6. e3 {[%clk 0:03:01]}  Be7 {[%clk 0:02:55]} 7. Bd3 {[%clk 0:03:01]}  Nbd7 {[%clk 0:02:54]} 8. Nge2 {[%clk 0:03:01]}  O-O {[%clk 0:02:54]} 9. O-O {[%clk 0:03:01]}  Re8 {[%clk 0:02:54]} 10. Qc2 {[%clk 0:03:01]}  Nf8 {[%clk 0:02:54]} 11. f3 {[%clk 0:02:57]}  Nh5 {[%clk 0:02:36]} 12. Bxe7 {[%clk 0:02:53]}  Qxe7 {[%clk 0:02:35]} 13. e4 {[%clk 0:02:49]}  dxe4 {[%clk 0:01:48]} 14. fxe4 {[%clk 0:02:49]}  Qg5 {[%clk 0:01:41]} 15. Qc1 {[%clk 0:02:29]}  Qg4 {[%clk 0:01:13]} 16. Nf4 {[%clk 0:02:03]}  Nxf4 {[%clk 0:00:23]} 17. Rxf4 {[%clk 0:02:04]}  Qh5 {[%clk 0:00:20]} 18. Qe3 {[%clk 0:01:29]}  Ne6 {[%clk 0:00:14]} 19. Rf5 {[%clk 0:01:23]}  Qg6 {[%clk 0:00:12]} 20. Raf1 {[%clk 0:01:20]}  Nd8 {[%clk 0:00:10]} 21. R5f2 {[%clk 0:01:14]}  f6 {[%clk 0:00:06]} 22. e5 {[%clk 0:01:06]}  Qh5 {[%clk 0:00:03]} 23. Qf4 {[%clk 0:00:47]}  c5 {[%clk 0:00:01]} 24. exf6 {[%clk 0:00:45]} 1-0


[Site "https://www.chess.com"]

[Event "Titled Tuesday Blitz February 21 Early 2023"]
[White "Dubov, Daniil"]
[Black "Zahid, Sanatan"]
[WhiteFideId "24126055"]
[BlackFideId "10201963"]
[WhiteElo "2708"]
[BlackElo "1930"]
[Result "1-0"]
[Round "03"]
[TimeControl "180+2"]
[Date "2023.02.21"]
[WhiteClock "0:00:05"]
[BlackClock "0:00:30"]

1. d4 {[%clk 0:03:00]}  Nf6 {[%clk 0:03:00]} 2. Nf3 {[%clk 0:03:01]}  e6 {[%clk 0:03:00]} 3. Bg5 {[%clk 0:03:01]}  b6 {[%clk 0:03:00]} 4. e4 {[%clk 0:03:00]}  h6 {[%clk 0:03:01]} 5. Bxf6 {[%clk 0:03:00]}  Qxf6 {[%clk 0:03:02]} 6. c3 {[%clk 0:02:56]}  Bb7 {[%clk 0:03:01]} 7. Nbd2 {[%clk 0:02:52]}  g6 {[%clk 0:03:00]} 8. Bd3 {[%clk 0:02:51]}  Bg7 {[%clk 0:02:59]} 9. O-O {[%clk 0:02:52]}  O-O {[%clk 0:03:00]} 10. Nc4 {[%clk 0:02:50]}  Qe7 {[%clk 0:02:59]} 11. Ne3 {[%clk 0:02:50]}  d5 {[%clk 0:02:53]} 12. exd5 {[%clk 0:02:47]}  exd5 {[%clk 0:02:54]} 13. Re1 {[%clk 0:02:46]}  Qd8 {[%clk 0:02:50]} 14. h4 {[%clk 0:02:42]}  h5 {[%clk 0:02:48]} 15. Ng5 {[%clk 0:02:25]}  Bh6 {[%clk 0:02:42]} 16. f4 {[%clk 0:01:17]}  Nd7 {[%clk 0:02:42]} 17. Qf3 {[%clk 0:01:03]}  c6 {[%clk 0:02:34]} 18. Qg3 {[%clk 0:01:00]}  Qf6 {[%clk 0:02:16]} 19. f5 {[%clk 0:00:55]}  Rae8 {[%clk 0:02:05]} 20. Rf1 {[%clk 0:00:34]}  Qg7 {[%clk 0:02:01]} 21. Rae1 {[%clk 0:00:32]}  Bc8 {[%clk 0:01:59]} 22. Qd6 {[%clk 0:00:25]}  Nf6 {[%clk 0:01:20]} 23. fxg6 {[%clk 0:00:23]}  fxg6 {[%clk 0:01:15]} 24. Qxc6 {[%clk 0:00:23]}  Kh8 {[%clk 0:01:06]} 25. Qd6 {[%clk 0:00:16]}  Rd8 {[%clk 0:01:04]} 26. Qg3 {[%clk 0:00:14]}  Rde8 {[%clk 0:01:03]} 27. Rf3 {[%clk 0:00:11]}  Bg4 {[%clk 0:00:53]} 28. Nxg4 {[%clk 0:00:08]}  Rxe1+ {[%clk 0:00:54]} 29. Qxe1 {[%clk 0:00:08]}  hxg4 {[%clk 0:00:54]} 30. Rf4 {[%clk 0:00:06]}  Re8 {[%clk 0:00:50]} 31. Qf1 {[%clk 0:00:06]}  Bxg5 {[%clk 0:00:31]} 32. hxg5 {[%clk 0:00:07]}  Nh5 {[%clk 0:00:32]} 33. Rf7 {[%clk 0:00:07]}  Qg8 {[%clk 0:00:32]} 34. g3 {[%clk 0:00:06]}  Nxg3 {[%clk 0:00:30]} 35. Qf6+ {[%clk 0:00:05]} 1-0


[Site "https://www.chess.com"]

[Event "Titled Tuesday Blitz February 21 Early 2023"]
[White "Kislinsky, Alexey"]
[Black "Caruana, Fabiano"]
[WhiteFideId "14108801"]
[BlackFideId "2020009"]
[WhiteElo "2357"]
[BlackElo "2764"]
[Result "1-0"]
[Round "03"]
[TimeControl "180+2"]
[Date "2023.02.21"]
[WhiteClock "0:00:19"]
[BlackClock "0:00:03"]

1. e4 {[%clk 0:03:00]}  e5 {[%clk 0:02:59]} 2. d4 {[%clk 0:02:58]}  exd4 {[%clk 0:02:59]} 3. Qxd4 {[%clk 0:02:58]}  Nc6 {[%clk 0:02:59]} 4. Qd3 {[%clk 0:02:58]}  Nf6 {[%clk 0:02:58]} 5. Nc3 {[%clk 0:02:58]}  Bb4 {[%clk 0:02:58]} 6. Bd2 {[%clk 0:02:58]}  O-O {[%clk 0:02:58]} 7. O-O-O {[%clk 0:02:59]}  Re8 {[%clk 0:02:59]} 8. Nge2 {[%clk 0:02:59]}  d6 {[%clk 0:02:55]} 9. Bg5 {[%clk 0:02:57]}  h6 {[%clk 0:02:50]} 10. Bxf6 {[%clk 0:02:57]}  Qxf6 {[%clk 0:02:49]} 11. Nd5 {[%clk 0:02:58]}  Qd8 {[%clk 0:02:48]} 12. Nxb4 {[%clk 0:02:58]}  Nxb4 {[%clk 0:02:48]} 13. Qd2 {[%clk 0:02:58]}  a5 {[%clk 0:02:47]} 14. Nc3 {[%clk 0:02:58]}  Be6 {[%clk 0:02:44]} 15. Kb1 {[%clk 0:02:56]}  Qf6 {[%clk 0:02:36]} 16. f3 {[%clk 0:02:51]}  Rad8 {[%clk 0:02:31]} 17. a3 {[%clk 0:02:49]}  Nc6 {[%clk 0:02:30]} 18. Bb5 {[%clk 0:02:48]}  Rf8 {[%clk 0:02:05]} 19. h4 {[%clk 0:02:29]}  Ne5 {[%clk 0:02:00]} 20. Be2 {[%clk 0:02:29]}  c6 {[%clk 0:01:56]} 21. f4 {[%clk 0:02:22]}  Nc4 {[%clk 0:01:52]} 22. Bxc4 {[%clk 0:02:21]}  Bxc4 {[%clk 0:01:53]} 23. g4 {[%clk 0:02:21]}  Qe7 {[%clk 0:01:30]} 24. g5 {[%clk 0:02:01]}  h5 {[%clk 0:01:30]} 25. f5 {[%clk 0:02:01]}  b5 {[%clk 0:01:22]} 26. f6 {[%clk 0:01:56]}  Qe5 {[%clk 0:01:20]} 27. fxg7 {[%clk 0:01:51]}  Kxg7 {[%clk 0:01:20]} 28. Ne2 {[%clk 0:01:46]}  b4 {[%clk 0:01:11]} 29. a4 {[%clk 0:01:28]}  b3 {[%clk 0:01:04]} 30. Nd4 {[%clk 0:01:28]}  Qxe4 {[%clk 0:00:50]} 31. Rhe1 {[%clk 0:01:21]}  bxc2+ {[%clk 0:00:42]} 32. Nxc2 {[%clk 0:01:20]}  Qxh4 {[%clk 0:00:43]} 33. Qc3+ {[%clk 0:01:18]}  Kg8 {[%clk 0:00:37]} 34. Rd4 {[%clk 0:01:16]}  Qf2 {[%clk 0:00:35]} 35. Rxc4 {[%clk 0:01:10]}  Rfe8 {[%clk 0:00:35]} 36. Rce4 {[%clk 0:01:09]}  Rxe4 {[%clk 0:00:34]} 37. Rxe4 {[%clk 0:01:10]}  d5 {[%clk 0:00:31]} 38. Re7 {[%clk 0:00:56]}  d4 {[%clk 0:00:28]} 39. Qxa5 {[%clk 0:00:56]}  Rb8 {[%clk 0:00:24]} 40. Qe5 {[%clk 0:00:47]}  Qf1+ {[%clk 0:00:21]} 41. Qe1 {[%clk 0:00:46]}  Qd3 {[%clk 0:00:18]} 42. Re8+ {[%clk 0:00:45]}  Rxe8 {[%clk 0:00:17]} 43. Qxe8+ {[%clk 0:00:45]}  Kg7 {[%clk 0:00:18]} 44. Qe5+ {[%clk 0:00:45]}  Kh7 {[%clk 0:00:18]} 45. Qxd4 {[%clk 0:00:44]}  Qf5 {[%clk 0:00:17]} 46. Qf6 {[%clk 0:00:41]}  Qd5 {[%clk 0:00:13]} 47. Nd4 {[%clk 0:00:37]}  Kg8 {[%clk 0:00:08]} 48. g6 {[%clk 0:00:31]}  Qe4+ {[%clk 0:00:08]} 49. Ka1 {[%clk 0:00:29]}  fxg6 {[%clk 0:00:06]} 50. Qe6+ {[%clk 0:00:20]}  Qxe6 {[%clk 0:00:06]} 51. Nxe6 {[%clk 0:00:21]}  Kf7 {[%clk 0:00:07]} 52. Ng5+ {[%clk 0:00:20]}  Ke7 {[%clk 0:00:07]} 53. a5 {[%clk 0:00:19]}  Kd6 {[%clk 0:00:08]} 54. b4 {[%clk 0:00:19]}  Kc7 {[%clk 0:00:07]} 55. Kb2 {[%clk 0:00:19]}  Kb7 {[%clk 0:00:06]} 56. Kb3 {[%clk 0:00:19]}  h4 {[%clk 0:00:04]} 57. Kc4 {[%clk 0:00:19]}  Kb8 {[%clk 0:00:02]} 58. Kc5 {[%clk 0:00:19]}  Kb7 {[%clk 0:00:03]} 59. Nh3 {[%clk 0:00:19]}  Kc7 {[%clk 0:00:03]} 60. a6 {[%clk 0:00:19]} 1-0


[Site "https://www.chess.com"]

[Event "Titled Tuesday Blitz February 21 Early 2023"]
[White "Le, Tuan Minh"]
[Black "Horvath, Dominik"]
[WhiteFideId "12401153"]
[BlackFideId "1642561"]
[WhiteElo "2542"]
[BlackElo "2523"]
[Result "0-1"]
[Round "03"]
[TimeControl "180+2"]
[Date "2023.02.21"]
[WhiteClock "0:00:03"]
[BlackClock "0:00:37"]

1. d4 {[%clk 0:03:00]}  Nf6 {[%clk 0:02:58]} 2. Nf3 {[%clk 0:03:01]}  d5 {[%clk 0:02:58]} 3. Bg5 {[%clk 0:03:01]}  Nbd7 {[%clk 0:02:57]} 4. e3 {[%clk 0:02:59]}  e6 {[%clk 0:02:52]} 5. c4 {[%clk 0:02:57]}  Be7 {[%clk 0:02:51]} 6. Nc3 {[%clk 0:02:57]}  h6 {[%clk 0:02:50]} 7. Bh4 {[%clk 0:02:55]}  O-O {[%clk 0:02:50]} 8. Qc2 {[%clk 0:02:55]}  c5 {[%clk 0:02:50]} 9. cxd5 {[%clk 0:02:55]}  Nxd5 {[%clk 0:02:50]} 10. Bxe7 {[%clk 0:02:55]}  Nxe7 {[%clk 0:02:49]} 11. Be2 {[%clk 0:02:41]}  b6 {[%clk 0:02:49]} 12. dxc5 {[%clk 0:02:26]}  Nxc5 {[%clk 0:02:48]} 13. Rd1 {[%clk 0:02:26]}  Qc7 {[%clk 0:02:43]} 14. Nb5 {[%clk 0:02:26]}  Qc6 {[%clk 0:02:27]} 15. Nfd4 {[%clk 0:02:02]}  Qe4 {[%clk 0:02:23]} 16. Bf3 {[%clk 0:01:29]}  Qxc2 {[%clk 0:02:22]} 17. Nxc2 {[%clk 0:01:30]}  Bb7 {[%clk 0:01:44]} 18. Bxb7 {[%clk 0:00:59]}  Nxb7 {[%clk 0:01:44]} 19. Ke2 {[%clk 0:00:39]}  a6 {[%clk 0:01:37]} 20. Nc3 {[%clk 0:00:35]}  Rfd8 {[%clk 0:01:35]} 21. g4 {[%clk 0:00:34]}  Kf8 {[%clk 0:01:35]} 22. h4 {[%clk 0:00:34]}  Ke8 {[%clk 0:01:35]} 23. g5 {[%clk 0:00:34]}  h5 {[%clk 0:01:35]} 24. Nd4 {[%clk 0:00:33]}  Nd6 {[%clk 0:01:31]} 25. Kf3 {[%clk 0:00:26]}  Ndf5 {[%clk 0:01:28]} 26. Nce2 {[%clk 0:00:25]}  Rac8 {[%clk 0:01:21]} 27. Nf4 {[%clk 0:00:05]}  Nxd4+ {[%clk 0:01:19]} 28. exd4 {[%clk 0:00:05]}  g6 {[%clk 0:01:20]} 29. Rd2 {[%clk 0:00:04]}  Nf5 {[%clk 0:01:18]} 30. Ke4 {[%clk 0:00:05]}  Rc4 {[%clk 0:01:15]} 31. Ne2 {[%clk 0:00:04]}  Rd5 {[%clk 0:01:03]} 32. b3 {[%clk 0:00:05]}  Rb4 {[%clk 0:01:02]} 33. f4 {[%clk 0:00:04]}  a5 {[%clk 0:01:00]} 34. Rh3 {[%clk 0:00:04]}  a4 {[%clk 0:01:00]} 35. bxa4 {[%clk 0:00:05]}  Rxa4 {[%clk 0:01:00]} 36. Rb3 {[%clk 0:00:06]}  b5 {[%clk 0:00:58]} 37. Nc3 {[%clk 0:00:06]}  Raxd4+ {[%clk 0:00:58]} 38. Rxd4 {[%clk 0:00:07]}  Rxd4+ {[%clk 0:00:59]} 39. Ke5 {[%clk 0:00:07]}  b4 {[%clk 0:00:57]} 40. Nb5 {[%clk 0:00:07]}  Rd5+ {[%clk 0:00:57]} 41. Kf6 {[%clk 0:00:08]}  Rxb5 {[%clk 0:00:58]} 42. Rd3 {[%clk 0:00:07]}  Rd5 {[%clk 0:00:57]} 43. Rb3 {[%clk 0:00:07]}  Rd4 {[%clk 0:00:56]} 44. a3 {[%clk 0:00:08]}  Rxf4 {[%clk 0:00:55]} 45. Ke5 {[%clk 0:00:06]}  Nd4 {[%clk 0:00:38]} 46. Rb1 {[%clk 0:00:06]}  Rxh4 {[%clk 0:00:37]} 47. axb4 {[%clk 0:00:06]}  Nc6+ {[%clk 0:00:37]} 48. Kd6 {[%clk 0:00:07]}  Nxb4 {[%clk 0:00:34]} 49. Ra1 {[%clk 0:00:07]}  Kf8 {[%clk 0:00:34]} 50. Ra4 {[%clk 0:00:06]}  Kg7 {[%clk 0:00:34]} 51. Ra1 {[%clk 0:00:06]}  Rg4 {[%clk 0:00:34]} 52. Rf1 {[%clk 0:00:05]}  Nd5 {[%clk 0:00:34]} 53. Ke5 {[%clk 0:00:04]}  Rxg5+ {[%clk 0:00:34]} 54. Kd6 {[%clk 0:00:05]}  Rf5 {[%clk 0:00:35]} 55. Rh1 {[%clk 0:00:05]}  g5 {[%clk 0:00:35]} 56. Kd7 {[%clk 0:00:05]}  h4 {[%clk 0:00:35]} 57. Ke8 {[%clk 0:00:06]}  Kg6 {[%clk 0:00:35]} 58. Kf8 {[%clk 0:00:05]}  Nf4 {[%clk 0:00:35]} 59. Kg8 {[%clk 0:00:05]}  h3 {[%clk 0:00:36]} 60. Re1 {[%clk 0:00:03]}  g4 {[%clk 0:00:36]} 61. Kf8 {[%clk 0:00:03]}  h2 {[%clk 0:00:36]} 62. Ke7 {[%clk 0:00:03]}  g3 {[%clk 0:00:37]} 0-1


[Site "https://www.chess.com"]